[Event "Live Chess"]
[Site "Chess.com"]
[Date "2024.06.02"]
[Round "-"]
[White "IgorSchukin"]
[Black "RockTroll"]
[Result "1-0"]
[WhiteElo "1759"]
[BlackElo "2180"]
[TimeControl "300"]
[EndTime "19:05:36 PDT"]
[Termination "IgorSchukin won by resignation"]

1. e4 {[%clk 0:04:56.8]} 1... c6 {[%clk 0:04:58]} 2. d4 {[%clk 0:04:55.3]} 2...
d5 {[%clk 0:04:57.9]} 3. Nc3 {[%clk 0:04:54.5]} 3... dxe4 {[%clk 0:04:56.9]} 4.
Nxe4 {[%clk 0:04:54.2]} 4... Nf6 {[%clk 0:04:56.7]} 5. Nxf6+ {[%clk 0:04:53.2]}
5... exf6 {[%clk 0:04:56.6]} 6. g3 {[%clk 0:04:52.4]} 6... Bd6 {[%clk
0:04:52.4]} 7. Bg2 {[%clk 0:04:51.2]} 7... Be6 {[%clk 0:04:50]} 8. Ne2 {[%clk
0:04:50.1]} 8... Nd7 {[%clk 0:04:49.3]} 9. O-O {[%clk 0:04:48.1]} 9... Qc7
{[%clk 0:04:48.4]} 10. Bf4 {[%clk 0:04:46.9]} 10... h5 {[%clk 0:04:46.5]} 11.
Bxd6 {[%clk 0:04:45.5]} 11... Qxd6 {[%clk 0:04:45.8]} 12. Nf4 {[%clk 0:04:44.5]}
12... h4 {[%clk 0:04:43.5]} 13. Nxe6 {[%clk 0:04:42.9]} 13... fxe6 {[%clk
0:04:42.6]} 14. Re1 {[%clk 0:04:39.7]} 14... hxg3 {[%clk 0:04:41.4]} 15. hxg3
{[%clk 0:04:34.6]} 15... O-O-O {[%clk 0:04:40.6]} 16. c3 {[%clk 0:04:24.3]}
16... Rh6 {[%clk 0:04:39.7]} 17. Qa4 {[%clk 0:04:20.7]} 17... Kb8 {[%clk
0:04:37]} 18. Rad1 {[%clk 0:04:16]} 18... Rdh8 {[%clk 0:04:36.1]} 19. Qb3 {[%clk
0:04:07.9]} 19... f5 {[%clk 0:04:28.1]} 20. c4 {[%clk 0:04:00.6]} 20... f4
{[%clk 0:04:27.2]} 21. c5 {[%clk 0:03:50.8]} 21... Qe7 {[%clk 0:04:23.4]} 22.
Bxc6 {[%clk 0:03:47.2]} 22... Nxc5 {[%clk 0:04:11]} 23. dxc5 {[%clk 0:03:41.8]}
23... fxg3 {[%clk 0:04:04.2]} 24. Qxg3+ {[%clk 0:03:04.1]} 24... Ka8 {[%clk
0:04:02.8]} 25. Bg2 {[%clk 0:02:54.2]} 25... Qf6 {[%clk 0:03:46.5]} 26. c6
{[%clk 0:02:45.9]} 26... e5 {[%clk 0:03:40.7]} 1-0

[Event "Live Chess"]
[Site "Chess.com"]
[Date "2024.06.02"]
[Round "-"]
[White "grillage"]
[Black "Mikhail_Golubev"]
[Result "0-1"]
[WhiteElo "1861"]
[BlackElo "2575"]
[TimeControl "300"]
[EndTime "19:05:37 PDT"]
[Termination "Mikhail_Golubev won by checkmate"]

1. d4 {[%clk 0:04:54.3]} 1... Nf6 {[%clk 0:04:58.2]} 2. Nf3 {[%clk 0:04:52.7]}
2... d6 {[%clk 0:04:57.5]} 3. c4 {[%clk 0:04:50.2]} 3... g6 {[%clk 0:04:56.3]}
4. g3 {[%clk 0:04:49.4]} 4... Bg7 {[%clk 0:04:55.6]} 5. Bg2 {[%clk 0:04:48]}
5... O-O {[%clk 0:04:55.1]} 6. O-O {[%clk 0:04:47.3]} 6... Nbd7 {[%clk 0:04:52]}
7. d5 {[%clk 0:04:46]} 7... Nb6 {[%clk 0:04:39.1]} 8. Nbd2 {[%clk 0:04:36.5]}
8... e6 {[%clk 0:04:34.5]} 9. e4 {[%clk 0:04:24]} 9... exd5 {[%clk 0:04:26.1]}
10. exd5 {[%clk 0:04:18.2]} 10... Re8 {[%clk 0:04:18.9]} 11. Rb1 {[%clk
0:04:07.5]} 11... Bf5 {[%clk 0:04:16]} 12. Ra1 {[%clk 0:04:00.2]} 12... Bd3
{[%clk 0:03:53.5]} 13. Re1 {[%clk 0:03:47.5]} 13... Nxc4 {[%clk 0:03:47.1]} 14.
Nxc4 {[%clk 0:03:40.1]} 14... Bxc4 {[%clk 0:03:45.2]} 15. Ng5 {[%clk 0:03:30.9]}
15... Rxe1+ {[%clk 0:03:39.4]} 16. Qxe1 {[%clk 0:03:29.3]} 16... Bxd5 {[%clk
0:03:27.3]} 17. Be3 {[%clk 0:03:22.5]} 17... Bxg2 {[%clk 0:03:21.6]} 18. Kxg2
{[%clk 0:03:21.4]} 18... Qd7 {[%clk 0:03:18.4]} 19. Qb4 {[%clk 0:03:14.8]} 19...
Qc6+ {[%clk 0:02:25.3]} 20. Kg1 {[%clk 0:03:11.3]} 20... a5 {[%clk 0:02:06.7]}
21. Qb3 {[%clk 0:03:09.6]} 21... Qd5 {[%clk 0:01:58.4]} 22. Qc2 {[%clk
0:02:56.2]} 22... h6 {[%clk 0:01:55.8]} 23. Nh3 {[%clk 0:02:49.6]} 23... c6
{[%clk 0:01:48.2]} 24. Rd1 {[%clk 0:02:46.4]} 24... Qxa2 {[%clk 0:01:45.3]} 25.
Rxd6 {[%clk 0:02:43.3]} 25... Nd5 {[%clk 0:01:36.1]} 26. Bc1 {[%clk 0:02:23.7]}
26... Re8 {[%clk 0:01:34.3]} 27. Kg2 {[%clk 0:02:16.7]} 27... a4 {[%clk
0:01:14.6]} 28. Qd2 {[%clk 0:02:04.8]} 28... Qc4 {[%clk 0:01:10.3]} 29. Rd7
{[%clk 0:01:57.5]} 29... b5 {[%clk 0:01:07.3]} 30. Nf4 {[%clk 0:01:52]} 30...
Nxf4+ {[%clk 0:01:04.5]} 31. Qxf4 {[%clk 0:01:51]} 31... Qxf4 {[%clk 0:00:52.2]}
32. Bxf4 {[%clk 0:01:49.5]} 32... Bxb2 {[%clk 0:00:49.2]} 33. Bd6 {[%clk
0:01:43.6]} 33... a3 {[%clk 0:00:46.4]} 34. Ra7 {[%clk 0:01:42.6]} 34... Rd8
{[%clk 0:00:36.6]} 35. Bxa3 {[%clk 0:01:39.7]} 35... Bxa3 {[%clk 0:00:35.1]} 36.
Rxa3 {[%clk 0:01:38.1]} 36... b4 {[%clk 0:00:32.8]} 37. Ra6 {[%clk 0:01:35.7]}
37... c5 {[%clk 0:00:25.7]} 38. Rc6 {[%clk 0:01:32.5]} 38... Rd5 {[%clk
0:00:23.8]} 39. Rb6 {[%clk 0:01:30.4]} 39... Kg7 {[%clk 0:00:21.1]} 40. Kf3
{[%clk 0:01:29]} 40... f5 {[%clk 0:00:20.1]} 41. Ke3 {[%clk 0:01:27]} 41... g5
{[%clk 0:00:17.5]} 42. f4 {[%clk 0:01:25.6]} 42... g4 {[%clk 0:00:16.2]} 43. Rb5
{[%clk 0:01:22.9]} 43... h5 {[%clk 0:00:14.9]} 44. Rb6 {[%clk 0:01:21.8]} 44...
Kf7 {[%clk 0:00:14.3]} 45. Ke2 {[%clk 0:01:19.2]} 45... Ke7 {[%clk 0:00:13.6]}
46. Ke3 {[%clk 0:01:18.1]} 46... Kd7 {[%clk 0:00:13.1]} 47. Rb5 {[%clk
0:01:15.6]} 47... Kc6 {[%clk 0:00:11.6]} 48. Rb8 {[%clk 0:01:14.7]} 48... Rd7
{[%clk 0:00:10.6]} 49. Ke2 {[%clk 0:01:10.9]} 49... Rb7 {[%clk 0:00:09.3]} 50.
Rc8+ {[%clk 0:01:09.6]} 50... Kd5 {[%clk 0:00:08.6]} 51. Rd8+ {[%clk 0:01:08.5]}
51... Kc4 {[%clk 0:00:07.8]} 52. Kd2 {[%clk 0:01:06.5]} 52... b3 {[%clk
0:00:06.4]} 53. Kc1 {[%clk 0:01:05.5]} 53... Kc3 {[%clk 0:00:05.8]} 54. Re8
{[%clk 0:01:03.1]} 54... Rd7 {[%clk 0:00:03.1]} 55. Re3+ {[%clk 0:01:00.9]}
55... Rd3 {[%clk 0:00:02.7]} 56. Re5 {[%clk 0:00:59.9]} 56... c4 {[%clk
0:00:01.6]} 57. Rxf5 {[%clk 0:00:57.4]} 57... b2+ {[%clk 0:00:00.8]} 58. Kb1
{[%clk 0:00:56.5]} 58... Rd1+ {[%clk 0:00:00.6]} 59. Ka2 {[%clk 0:00:46.3]}
59... b1=Q+ {[%clk 0:00:00.5]} 60. Ka3 {[%clk 0:00:45.9]} 60... Qa1# {[%clk
0:00:00.4]} 0-1

[Event "Live Chess"]
[Site "Chess.com"]
[Date "2024.06.02"]
[Round "-"]
[White "MaksymYurii"]
[Black "asingardenof"]
[Result "1-0"]
[WhiteElo "960"]
[BlackElo "621"]
[TimeControl "300"]
[EndTime "19:07:29 PDT"]
[Termination "MaksymYurii won by checkmate"]

1. e4 {[%clk 0:04:55.6]} 1... c6 {[%clk 0:04:58.4]} 2. Nf3 {[%clk 0:04:54.4]}
2... d5 {[%clk 0:04:58.3]} 3. exd5 {[%clk 0:04:53.1]} 3... cxd5 {[%clk
0:04:58.2]} 4. c4 {[%clk 0:04:46.3]} 4... Nc6 {[%clk 0:04:56.1]} 5. cxd5 {[%clk
0:04:45.1]} 5... Nb4 {[%clk 0:04:55.3]} 6. Nc3 {[%clk 0:04:40.9]} 6... Bg4
{[%clk 0:04:50.2]} 7. Be2 {[%clk 0:04:30.9]} 7... Nf6 {[%clk 0:04:47.7]} 8. O-O
{[%clk 0:04:30]} 8... Bxf3 {[%clk 0:04:29.1]} 9. Bxf3 {[%clk 0:04:28.2]} 9...
Qd6 {[%clk 0:04:22.6]} 10. a3 {[%clk 0:04:20.4]} 10... e5 {[%clk 0:04:22.5]} 11.
axb4 {[%clk 0:04:18.6]} 11... Be7 {[%clk 0:04:20.4]} 12. Ra4 {[%clk 0:04:07]}
12... O-O {[%clk 0:04:18.7]} 13. Nb5 {[%clk 0:04:03.7]} 13... Qb6 {[%clk
0:04:10.9]} 14. d6 {[%clk 0:03:56.4]} 14... Bxd6 {[%clk 0:04:07.8]} 15. Nxd6
{[%clk 0:03:55.2]} 15... Qxd6 {[%clk 0:04:05.6]} 16. d3 {[%clk 0:03:52.2]} 16...
Nd7 {[%clk 0:03:58.6]} 17. Bd2 {[%clk 0:03:49.3]} 17... a6 {[%clk 0:03:46.7]}
18. Bxb7 {[%clk 0:03:43.7]} 18... Ra7 {[%clk 0:03:43.5]} 19. Qf3 {[%clk
0:03:37.7]} 19... Nb6 {[%clk 0:03:29.6]} 20. Rxa6 {[%clk 0:03:21]} 20... Rxa6
{[%clk 0:03:16.5]} 21. Bxa6 {[%clk 0:03:20.9]} 21... Nd5 {[%clk 0:03:12.5]} 22.
Bc4 {[%clk 0:03:04.5]} 22... Nf6 {[%clk 0:03:09.1]} 23. Qg3 {[%clk 0:03:00.3]}
23... g6 {[%clk 0:03:04.4]} 24. Bh6 {[%clk 0:02:48.8]} 24... Nh5 {[%clk
0:03:01.1]} 25. Qf3 {[%clk 0:02:21.1]} 25... Re8 {[%clk 0:02:50.7]} 26. Bxf7+
{[%clk 0:02:15.7]} 26... Kh8 {[%clk 0:02:44.3]} 27. Bxe8 {[%clk 0:02:13.3]}
27... Qe7 {[%clk 0:02:37.9]} 28. Ra1 {[%clk 0:01:55.5]} 28... Qxe8 {[%clk
0:02:29.9]} 29. Ra8 {[%clk 0:01:52.8]} 29... Qxa8 {[%clk 0:02:23.2]} 30. Qxa8#
{[%clk 0:01:49.9]} 1-0

[Event "Live Chess"]
[Site "Chess.com"]
[Date "2024.06.02"]
[Round "-"]
[White "Frankie_Badacsonyi"]
[Black "GwaryTek"]
[Result "1-0"]
[WhiteElo "2413"]
[BlackElo "1915"]
[TimeControl "300"]
[EndTime "19:08:03 PDT"]
[Termination "Frankie_Badacsonyi won on time"]

1. Nf3 {[%clk 0:04:57.7]} 1... Nf6 {[%clk 0:04:59.9]} 2. e3 {[%clk 0:04:56.7]}
2... d6 {[%clk 0:04:59.2]} 3. b3 {[%clk 0:04:56.2]} 3... e5 {[%clk 0:04:57.4]}
4. Bb2 {[%clk 0:04:55.1]} 4... Be7 {[%clk 0:04:56.9]} 5. d4 {[%clk 0:04:54.4]}
5... Nbd7 {[%clk 0:04:54.8]} 6. c4 {[%clk 0:04:49.9]} 6... c6 {[%clk 0:04:46.9]}
7. Nc3 {[%clk 0:04:48.8]} 7... O-O {[%clk 0:04:45]} 8. Be2 {[%clk 0:04:48]} 8...
e4 {[%clk 0:04:44.4]} 9. Nd2 {[%clk 0:04:44.8]} 9... d5 {[%clk 0:04:44.3]} 10.
f3 {[%clk 0:04:41.1]} 10... exf3 {[%clk 0:04:42.4]} 11. Bxf3 {[%clk 0:04:40.4]}
11... dxc4 {[%clk 0:04:40.1]} 12. Nxc4 {[%clk 0:04:38.6]} 12... c5 {[%clk
0:04:38.4]} 13. O-O {[%clk 0:04:37.4]} 13... Nb6 {[%clk 0:04:30.2]} 14. Ne5
{[%clk 0:04:31.3]} 14... cxd4 {[%clk 0:04:27.9]} 15. exd4 {[%clk 0:04:31.2]}
15... Rb8 {[%clk 0:04:23.2]} 16. Kh1 {[%clk 0:04:29.8]} 16... Nbd5 {[%clk
0:04:20.5]} 17. Ne4 {[%clk 0:04:16.3]} 17... Ne3 {[%clk 0:04:08.6]} 18. Qe2
{[%clk 0:04:03.7]} 18... Nxf1 {[%clk 0:04:05.6]} 19. Rxf1 {[%clk 0:04:03.6]}
19... Bf5 {[%clk 0:03:50.8]} 20. Ng3 {[%clk 0:03:58.2]} 20... Bg6 {[%clk
0:03:44.8]} 21. h3 {[%clk 0:03:41.9]} 21... Bd6 {[%clk 0:03:36.2]} 22. Qe3
{[%clk 0:03:29.6]} 22... Re8 {[%clk 0:03:32.1]} 23. Qf4 {[%clk 0:03:27.8]} 23...
Qb6 {[%clk 0:02:37]} 24. Nf5 {[%clk 0:03:12.1]} 24... Bxf5 {[%clk 0:02:13.8]}
25. Qxf5 {[%clk 0:03:12]} 25... Rbc8 {[%clk 0:02:07.9]} 26. Be2 {[%clk
0:02:28.2]} 26... Rf8 {[%clk 0:01:29.2]} 27. Bc4 {[%clk 0:02:23.2]} 27... Qc7
{[%clk 0:01:09.6]} 28. a4 {[%clk 0:01:57.8]} 28... a6 {[%clk 0:01:07.2]} 29. Qg5
{[%clk 0:01:49.9]} 29... b5 {[%clk 0:00:44]} 30. axb5 {[%clk 0:01:29.5]} 30...
axb5 {[%clk 0:00:43.9]} 31. Bxb5 {[%clk 0:01:27.3]} 31... Qc2 {[%clk 0:00:27.7]}
32. Ba1 {[%clk 0:01:21.2]} 32... Ne4 {[%clk 0:00:20.6]} 33. Qe3 {[%clk 0:01:09]}
33... Bxe5 {[%clk 0:00:18.3]} 34. dxe5 {[%clk 0:01:02.5]} 34... Rc5 {[%clk
0:00:02.5]} 35. Bc4 {[%clk 0:01:00]} 1-0

[Event "Live Chess"]
[Site "Chess.com"]
[Date "2024.06.02"]
[Round "-"]
[White "KeithArkell"]
[Black "WelshTiger"]
[Result "0-1"]
[WhiteElo "2438"]
[BlackElo "2449"]
[TimeControl "300"]
[EndTime "19:08:32 PDT"]
[Termination "WelshTiger won by resignation"]

1. d4 {[%clk 0:04:57.6]} 1... d5 {[%clk 0:04:58.1]} 2. Nf3 {[%clk 0:04:56.9]}
2... Nf6 {[%clk 0:04:56.5]} 3. c4 {[%clk 0:04:56.6]} 3... dxc4 {[%clk
0:04:55.9]} 4. e3 {[%clk 0:04:55.3]} 4... Bg4 {[%clk 0:04:54]} 5. Bxc4 {[%clk
0:04:53.8]} 5... e6 {[%clk 0:04:53.5]} 6. h3 {[%clk 0:04:53.2]} 6... Bh5 {[%clk
0:04:52.4]} 7. Nbd2 {[%clk 0:04:52.6]} 7... Nbd7 {[%clk 0:04:49.9]} 8. a3 {[%clk
0:04:52]} 8... a6 {[%clk 0:04:40.4]} 9. b4 {[%clk 0:04:51]} 9... Bd6 {[%clk
0:04:30]} 10. Bb2 {[%clk 0:04:50.1]} 10... a5 {[%clk 0:04:19.1]} 11. Qb3 {[%clk
0:04:48.5]} 11... O-O {[%clk 0:04:10.6]} 12. O-O {[%clk 0:04:43.3]} 12... Nb6
{[%clk 0:04:02]} 13. Be2 {[%clk 0:04:40]} 13... c6 {[%clk 0:03:52.1]} 14. Rfd1
{[%clk 0:04:34.5]} 14... Nfd5 {[%clk 0:03:36.2]} 15. Ne4 {[%clk 0:04:25.3]}
15... axb4 {[%clk 0:03:29.8]} 16. Nxd6 {[%clk 0:04:24.4]} 16... Qxd6 {[%clk
0:03:28.3]} 17. axb4 {[%clk 0:04:23.4]} 17... Qxb4 {[%clk 0:03:24.9]} 18. Qxb4
{[%clk 0:04:22.5]} 18... Nxb4 {[%clk 0:03:23.9]} 19. Rdb1 {[%clk 0:04:12.6]}
19... N6d5 {[%clk 0:03:13.3]} 20. e4 {[%clk 0:04:03.9]} 20... Nf4 {[%clk
0:03:10.1]} 21. Bd1 {[%clk 0:03:57.5]} 21... Bxf3 {[%clk 0:03:05.7]} 22. Bxf3
{[%clk 0:03:55.5]} 22... Nfd3 {[%clk 0:02:52.3]} 23. Bc3 {[%clk 0:03:53.6]}
23... Rxa1 {[%clk 0:02:40]} 24. Rxa1 {[%clk 0:03:53.5]} 24... b5 {[%clk
0:02:26.4]} 25. Ra7 {[%clk 0:03:46.4]} 25... g5 {[%clk 0:02:17.7]} 26. Bh5
{[%clk 0:03:40.3]} 26... Nc2 {[%clk 0:02:03.8]} 27. Rc7 {[%clk 0:03:37.4]} 27...
b4 {[%clk 0:01:57.9]} 28. Bd2 {[%clk 0:03:36.5]} 28... Nxd4 {[%clk 0:01:53.3]}
29. Bxg5 {[%clk 0:03:31.3]} 29... b3 {[%clk 0:01:42.7]} 30. Rb7 {[%clk
0:03:30.3]} 30... b2 {[%clk 0:01:37.3]} 31. Bh6 {[%clk 0:03:24.1]} 31... Nb5
{[%clk 0:01:35.4]} 32. Bxf8 {[%clk 0:03:20.1]} 32... Kxf8 {[%clk 0:01:34.6]} 33.
Rxf7+ {[%clk 0:03:15.3]} 33... Kg8 {[%clk 0:01:33.7]} 0-1

[Event "Live Chess"]
[Site "Chess.com"]
[Date "2024.06.02"]
[Round "-"]
[White "ShanthamGrarks"]
[Black "Dhaydon19"]
[Result "0-1"]
[WhiteElo "1876"]
[BlackElo "2680"]
[TimeControl "300"]
[EndTime "19:09:50 PDT"]
[Termination "Dhaydon19 won on time"]

1. d4 {[%clk 0:04:55.6]} 1... d5 {[%clk 0:04:58.1]} 2. Nc3 {[%clk 0:04:54.6]}
2... e6 {[%clk 0:04:57.5]} 3. e4 {[%clk 0:04:53.9]} 3... dxe4 {[%clk 0:04:56]}
4. f3 {[%clk 0:04:52.8]} 4... Nd7 {[%clk 0:04:55.7]} 5. fxe4 {[%clk 0:04:50.3]}
5... b6 {[%clk 0:04:55]} 6. Nf3 {[%clk 0:04:47.3]} 6... Bb7 {[%clk 0:04:53.2]}
7. Bd3 {[%clk 0:04:46.2]} 7... Ngf6 {[%clk 0:04:50.3]} 8. Bg5 {[%clk 0:04:44.3]}
8... Be7 {[%clk 0:04:49]} 9. O-O {[%clk 0:04:43.3]} 9... c5 {[%clk 0:04:48.2]}
10. d5 {[%clk 0:04:38.9]} 10... exd5 {[%clk 0:04:37.3]} 11. e5 {[%clk
0:04:36.9]} 11... Ne4 {[%clk 0:04:35.2]} 12. Bxe7 {[%clk 0:04:35.2]} 12... Qxe7
{[%clk 0:04:33.4]} 13. Bxe4 {[%clk 0:04:30.3]} 13... dxe4 {[%clk 0:04:32.1]} 14.
Nb5 {[%clk 0:04:26]} 14... O-O {[%clk 0:04:27.6]} 15. Nd2 {[%clk 0:04:06.4]}
15... Nxe5 {[%clk 0:04:25]} 16. Qh5 {[%clk 0:03:53.1]} 16... g6 {[%clk
0:04:18.8]} 17. Qh3 {[%clk 0:03:48.6]} 17... f5 {[%clk 0:04:13.9]} 18. Rad1
{[%clk 0:03:40]} 18... Rad8 {[%clk 0:04:10.4]} 19. Nb3 {[%clk 0:03:35.7]} 19...
Ng4 {[%clk 0:04:04.1]} 20. c4 {[%clk 0:03:15.5]} 20... Ba6 {[%clk 0:04:00.4]}
21. a4 {[%clk 0:03:11.2]} 21... Bxb5 {[%clk 0:03:59.1]} 22. axb5 {[%clk
0:03:10]} 22... Rxd1 {[%clk 0:03:56.1]} 23. Rxd1 {[%clk 0:03:06.7]} 23... Rd8
{[%clk 0:03:55.8]} 24. Ra1 {[%clk 0:02:43.8]} 24... Qd6 {[%clk 0:03:51.8]} 25.
Rf1 {[%clk 0:02:20.7]} 25... Qd1 {[%clk 0:03:44.9]} 26. Qg3 {[%clk 0:01:55.9]}
26... Qxf1+ {[%clk 0:03:40.6]} 27. Kxf1 {[%clk 0:01:53.1]} 27... Rd1+ {[%clk
0:03:40.3]} 28. Ke2 {[%clk 0:01:51.5]} 28... Rd7 {[%clk 0:03:32.8]} 29. h3
{[%clk 0:01:46.6]} 29... Nf6 {[%clk 0:03:31.2]} 30. Qe5 {[%clk 0:01:39]} 30...
Kf7 {[%clk 0:03:30.4]} 31. Nd2 {[%clk 0:01:32.1]} 31... e3 {[%clk 0:03:20.6]}
32. Nf3 {[%clk 0:01:29.7]} 32... Ne4 {[%clk 0:03:16.5]} 33. Kxe3 {[%clk
0:01:20.6]} 33... Re7 {[%clk 0:03:14]} 34. Qd5+ {[%clk 0:01:19.6]} 34... Kg7
{[%clk 0:03:10.3]} 35. Kf4 {[%clk 0:01:05.9]} 35... Kf6 {[%clk 0:03:01.7]} 36.
Nh2 {[%clk 0:00:46.7]} 36... h6 {[%clk 0:02:52.2]} 37. h4 {[%clk 0:00:45.4]}
37... g5+ {[%clk 0:02:50.5]} 38. hxg5+ {[%clk 0:00:44.5]} 38... hxg5+ {[%clk
0:02:50.1]} 39. Kf3 {[%clk 0:00:43.9]} 39... Re6 {[%clk 0:02:34.2]} 40. g4
{[%clk 0:00:41.9]} 40... Re5 {[%clk 0:02:18.9]} 41. Qd8+ {[%clk 0:00:39.9]}
41... Kf7 {[%clk 0:02:15.4]} 42. gxf5 {[%clk 0:00:38.8]} 42... Nf6 {[%clk
0:02:13.3]} 43. Qc7+ {[%clk 0:00:32.8]} 43... Re7 {[%clk 0:02:12]} 44. Qd6
{[%clk 0:00:29]} 44... Re4 {[%clk 0:02:05.2]} 45. Qc7+ {[%clk 0:00:24.7]} 45...
Re7 {[%clk 0:02:03.8]} 46. Qd8 {[%clk 0:00:23.4]} 46... Rd7 {[%clk 0:02:01.6]}
47. Qh8 {[%clk 0:00:21.6]} 47... Rd3+ {[%clk 0:02:00.1]} 48. Ke2 {[%clk
0:00:19.8]} 48... Rd4 {[%clk 0:01:57.3]} 49. Nf3 {[%clk 0:00:18.4]} 49... Re4+
{[%clk 0:01:55.5]} 50. Kf2 {[%clk 0:00:17.2]} 50... Rf4 {[%clk 0:01:54.1]} 51.
Kg2 {[%clk 0:00:14.6]} 51... Ne4 {[%clk 0:01:52.1]} 52. Ne5+ {[%clk 0:00:10.8]}
52... Ke7 {[%clk 0:01:49.2]} 53. Qg7+ {[%clk 0:00:09.6]} 53... Kd6 {[%clk
0:01:44.6]} 54. Nf7+ {[%clk 0:00:03.1]} 54... Ke7 {[%clk 0:01:44.1]} 55. Nxg5+
{[%clk 0:00:00.2]} 55... Kd6 {[%clk 0:01:43.5]} 0-1

[Event "Live Chess"]
[Site "Chess.com"]
[Date "2024.06.02"]
[Round "-"]
[White "booktrunk"]
[Black "RafaelRony"]
[Result "1-0"]
[WhiteElo "1518"]
[BlackElo "1073"]
[TimeControl "300"]
[EndTime "19:09:52 PDT"]
[Termination "booktrunk won by resignation"]

1. d4 {[%clk 0:04:54.6]} 1... d5 {[%clk 0:04:59.4]} 2. Nc3 {[%clk 0:04:52.3]}
2... Nf6 {[%clk 0:04:54.3]} 3. Bf4 {[%clk 0:04:49.3]} 3... e6 {[%clk 0:04:49.7]}
4. Nb5 {[%clk 0:04:45.9]} 4... Na6 {[%clk 0:04:47.7]} 5. e3 {[%clk 0:04:43.7]}
5... c6 {[%clk 0:04:46.5]} 6. Nc3 {[%clk 0:04:41.8]} 6... Nc7 {[%clk 0:04:42.4]}
7. Nf3 {[%clk 0:04:40.7]} 7... Bd6 {[%clk 0:04:41.2]} 8. Be2 {[%clk 0:04:38.9]}
8... b6 {[%clk 0:04:32]} 9. O-O {[%clk 0:04:29.7]} 9... Bb7 {[%clk 0:04:23.9]}
10. Bxd6 {[%clk 0:04:23]} 10... Qxd6 {[%clk 0:04:22.3]} 11. a3 {[%clk
0:04:21.8]} 11... O-O {[%clk 0:04:19.1]} 12. Re1 {[%clk 0:04:20.5]} 12... Rfe8
{[%clk 0:04:16.3]} 13. e4 {[%clk 0:04:17.5]} 13... dxe4 {[%clk 0:04:14.6]} 14.
Ne5 {[%clk 0:04:12]} 14... Ncd5 {[%clk 0:04:07.7]} 15. Bf1 {[%clk 0:04:08.2]}
15... Nxc3 {[%clk 0:04:05.1]} 16. bxc3 {[%clk 0:04:07.1]} 16... Rad8 {[%clk
0:04:00.2]} 17. a4 {[%clk 0:03:57.4]} 17... c5 {[%clk 0:03:59.5]} 18. Nc4 {[%clk
0:03:52.3]} 18... Qc7 {[%clk 0:03:55.4]} 19. Nb2 {[%clk 0:03:39.6]} 19... cxd4
{[%clk 0:03:43.5]} 20. cxd4 {[%clk 0:03:38]} 20... e5 {[%clk 0:03:40.3]} 21. Bb5
{[%clk 0:03:30.2]} 21... Rf8 {[%clk 0:03:33.5]} 22. Qc1 {[%clk 0:03:28.5]} 22...
exd4 {[%clk 0:03:30]} 23. Nc4 {[%clk 0:03:27.4]} 23... a6 {[%clk 0:03:23.3]} 24.
Bxa6 {[%clk 0:03:12.8]} 24... Bxa6 {[%clk 0:03:18.3]} 25. Nb2 {[%clk 0:03:12.7]}
25... Rfe8 {[%clk 0:03:11.7]} 26. Qg5 {[%clk 0:03:08.3]} 26... h6 {[%clk
0:03:05.9]} 27. Qh4 {[%clk 0:03:06.2]} 27... Re5 {[%clk 0:02:57.8]} 28. Rac1
{[%clk 0:03:05.1]} 28... Rh5 {[%clk 0:02:56]} 29. Qg3 {[%clk 0:03:00.9]} 29...
Rdd5 {[%clk 0:02:50.8]} 30. Qxc7 {[%clk 0:02:56.8]} 30... Rdg5 {[%clk
0:02:46.6]} 31. Qd8+ {[%clk 0:02:46.8]} 31... Kh7 {[%clk 0:02:44.6]} 32. Qxd4
{[%clk 0:02:44.9]} 32... Ng4 {[%clk 0:02:37]} 1-0

[Event "Live Chess"]
[Site "Chess.com"]
[Date "2024.06.02"]
[Round "-"]
[White "CheckThis4"]
[Black "educatedlad"]
[Result "1-0"]
[WhiteElo "2687"]
[BlackElo "1736"]
[TimeControl "300"]
[EndTime "19:10:04 PDT"]
[Termination "CheckThis4 won by resignation"]

1. d4 {[%clk 0:04:56.7]} 1... Nf6 {[%clk 0:04:57.7]} 2. Nc3 {[%clk 0:04:56.6]}
2... d5 {[%clk 0:04:56.2]} 3. e4 {[%clk 0:04:56]} 3... dxe4 {[%clk 0:04:54.4]}
4. f3 {[%clk 0:04:54.9]} 4... exf3 {[%clk 0:04:52.1]} 5. Nxf3 {[%clk 0:04:54.8]}
5... Bg4 {[%clk 0:04:50.8]} 6. h3 {[%clk 0:04:45.1]} 6... Bh5 {[%clk 0:04:48.5]}
7. g4 {[%clk 0:04:41.5]} 7... Bg6 {[%clk 0:04:46.9]} 8. Ne5 {[%clk 0:04:40.6]}
8... Nbd7 {[%clk 0:04:44.1]} 9. Qf3 {[%clk 0:04:37.7]} 9... Nxe5 {[%clk
0:04:39.3]} 10. dxe5 {[%clk 0:04:36]} 10... Nd7 {[%clk 0:04:35.7]} 11. e6 {[%clk
0:04:30.1]} 11... Ne5 {[%clk 0:04:25.5]} 12. Qxb7 {[%clk 0:04:25.3]} 12... c6
{[%clk 0:04:06.2]} 13. Bg2 {[%clk 0:04:17.1]} 13... fxe6 {[%clk 0:03:45.9]} 14.
Bf4 {[%clk 0:04:08.1]} 14... Nd7 {[%clk 0:03:38.1]} 15. Bxc6 {[%clk 0:04:02.3]}
15... Rc8 {[%clk 0:03:32.3]} 16. O-O-O {[%clk 0:03:58.5]} 16... Qc7 {[%clk
0:03:28.8]} 17. Bxc7 {[%clk 0:03:56.1]} 1-0

[Event "Live Chess"]
[Site "Chess.com"]
[Date "2024.06.02"]
[Round "-"]
[White "asingardenof"]
[Black "GwaryTek"]
[Result "0-1"]
[WhiteElo "621"]
[BlackElo "1915"]
[TimeControl "300"]
[EndTime "19:10:36 PDT"]
[Termination "GwaryTek won by resignation"]

1. e4 {[%clk 0:04:49.1]} 1... c5 {[%clk 0:04:57.8]} 2. Nf3 {[%clk 0:04:46.2]}
2... d6 {[%clk 0:04:56]} 3. Nc3 {[%clk 0:04:44.1]} 3... Nf6 {[%clk 0:04:53.2]}
4. Bc4 {[%clk 0:04:42]} 4... e6 {[%clk 0:04:51.5]} 5. O-O {[%clk 0:04:38.4]}
5... Nc6 {[%clk 0:04:48]} 6. d3 {[%clk 0:04:38.3]} 6... Be7 {[%clk 0:04:46]} 7.
Be3 {[%clk 0:04:32]} 7... d5 {[%clk 0:04:45.4]} 8. exd5 {[%clk 0:04:30]} 8...
exd5 {[%clk 0:04:45.3]} 9. Bb3 {[%clk 0:04:28.9]} 9... d4 {[%clk 0:04:44.6]} 10.
Nxd4 {[%clk 0:04:26.9]} 10... cxd4 {[%clk 0:04:44.5]} 11. Bxd4 {[%clk
0:04:25.7]} 11... Qxd4 {[%clk 0:04:40.4]} 12. Ne2 {[%clk 0:04:21.4]} 12... Qh4
{[%clk 0:04:30.3]} 13. h3 {[%clk 0:04:18.1]} 13... O-O {[%clk 0:04:23.8]} 14.
Ng3 {[%clk 0:03:59.2]} 14... Bd6 {[%clk 0:04:16.9]} 15. Qf3 {[%clk 0:03:54.8]}
15... Nd4 {[%clk 0:04:13.9]} 16. Qe3 {[%clk 0:03:49.9]} 16... Nxb3 {[%clk
0:04:07.9]} 17. axb3 {[%clk 0:03:49.8]} 17... Bf4 {[%clk 0:04:06.4]} 18. Qe4
{[%clk 0:03:43.9]} 18... Nxe4 {[%clk 0:04:04.8]} 19. Nxe4 {[%clk 0:03:42.9]}
19... Bxh3 {[%clk 0:04:03.1]} 0-1